[Event "DSOL-KO 2022"]
[Site "Germany"]
[Date "2022.05.19"]
[Round "2.1"]
[White "Maisuradze, Daviti"]
[Black "Mader, Lena"]
[Result "1-0"]
[ECO "B12"]
[WhiteElo "1705"]
[BlackElo "1824"]
[Annotator "NA RC COMBH"]
[PlyCount "63"]
[EventDate "2022.01.31"]
[EventType "team-tourn"]
[EventCountry "GER"]
[SourceTitle "playchess.com"]
[Source "ChessBase"]
[SourceQuality "1"]
[TimeControl "2700+15"]

1. e4 c6 2. d4 d5 3. e5 Bf5 4. Bd3 Bxd3 5. Qxd3 e6 6. Nf3 c5 7. Be3 cxd4 8. Nxd4 Nc6 9. f4 Nge7 10. a3 Rc8 11. Nd2 Nxd4 12. Bxd4 Nc6 13. Bf2 Be7 14. Nf3 Qc7 15. b4 a6 16. O-O O-O 17. Rac1 b5 18. Nd2 a5 19. c3 Qb7 20. Nb3 a4 21. Nc5 Bxc5 22. Bxc5 Rfd8 23. Rf3 Na5 24. Re1 Nc4 25. f5 exf5 26. Qxf5 g6 27. Qf6 Nd2 28. Rd3 Ne4 29. Rxe4 dxe4 30. Rxd8+ Rxd8 31. Qxd8+ Kg7 32. Qf8# 1-0

[Event "DSOL-KO 2022"]
[Site "Germany"]
[Date "2022.05.13"]
[Round "2.1"]
[White "Schoeneberg, Manfred"]
[Black "Seidel, Mika"]
[Result "0-1"]
[ECO "B85"]
[WhiteElo "1703"]
[BlackElo "2037"]
[Annotator "TA"]
[PlyCount "90"]
[EventDate "2022.01.31"]
[EventType "team-tourn"]
[EventCountry "GER"]
[SourceTitle "playchess.com"]
[Source "ChessBase"]
[SourceQuality "1"]
[WhiteTeam "TSG Taucha I"]
[BlackTeam "SK Johanneum Eppendorf I"]
[TimeControl "2700+15"]

{[%evp 21,90,31,34,-19,0,-17,0,-10,-13,-39,-39,-39,-33,-37,-35,-81,-80,-82,-78,-79,-85,-151,-145,-183,-183,-182,-183,-258,-172,-181,-192,-203,-206,-260,-258,-328,-320,-433,-426,-407,-404,-531,-517,-579,-570,-662,-591,-954,-681,-622,-592,-547,-506,-765,-747,-647,-586,-730,-739,-2520,-2494,-2196,-1902,-12214,-6902,-5193,-1345,-29986,-29987,-29988,-29989]} 1. e4 c5 2. Nf3 e6 3. d4 cxd4 4. Nxd4 a6 5. Be2 Qc7 6. O-O Nf6 7. Nc3 Be7 8. Be3 d6 9. f4 O-O 10. Bf3 {10.Kh1 is becoming the main line.} Nc6 11. Nxc6 bxc6 12. Kh1 {B85: Sicilian Scheveningen: 6 Be2 a6, lines with early Be3.} (12. Na4 $14) 12... Bb7 13. Qd2 c5 14. Rad1 {[#] The position is equal.} Rad8 $146 ({Predecessor:} 14... Rfb8 15. b3 Rd8 16. Qe2 d5 17. exd5 exd5 18. Bc1 d4 19. Ne4 Nd5 20. a4 a5 {0-1 (33) Molinsky,H-Trippe,J ICCF corr 1990}) 15. Qf2 d5 {[%cal Bd6d5,Bd5d4][%mdl 32]} 16. e5 d4 17. exf6 Bxf6 18. Ne4 Bxe4 $17 {Black converts the advantage convincingly.} ({But not} 18... dxe3 19. Nxf6+ gxf6 20. Qg3+ Kh8 21. Qh4 $16) 19. Bxe4 {Hoping for Bc1.} dxe3 20. Qxe3 Bxb2 21. Qh3 {[#]} (21. f5 $142) 21... g6 $1 22. Qb3 Rxd1 23. Rxd1 Qxf4 $40 {[%mdl 128] Black wants a kill.} 24. Bf3 (24. Bb7 $142 Bf6 25. Qf3 Qxf3 26. gxf3) 24... Qb4 25. Qxb4 cxb4 $19 {[%mdl 4096] Endgame KRB-KRB} 26. Rd6 Rc8 27. Rxa6 Rxc2 {[#] ( -> ...Rc1+)} 28. g3 Ba3 29. Ra8+ Kg7 30. Rb8 Rxa2 31. h4 Rb2 32. Ra8 h5 33. g4 Rb3 34. Be2 hxg4 35. Bxg4 Bc1 {And now ...Ra3 would win.} 36. Kg2 Rc3 37. Bd1 (37. Ra7 $142 Kf6 38. Ra5) 37... b3 {[%cal Bb4b3,Bb3b2][%mdl 32]} 38. Rb8 b2 {...f5 is the strong threat.} 39. Rb5 f5 40. h5 gxh5 41. Bxh5 Kf6 {Strongly threatening ...Rc2+.} 42. Bd1 {Against Rc2+} Kg5 43. Rb6 Re3 {Threatens to win with ...e5.} 44. Bc2 Re2+ 45. Kf3 Rxc2 {Weighted Error Value: White=0.72/Black=0.20 (precise)} 0-1

[Event "DSOL-KO 2022"]
[Site "Germany"]
[Date "2022.05.13"]
[Round "2.1"]
[White "Keyser, Robin"]
[Black "Brock, Friedemann"]
[Result "1/2-1/2"]
[ECO "A60"]
[WhiteElo "1620"]
[BlackElo "1469"]
[Annotator "NA RC COMBH"]
[PlyCount "105"]
[EventDate "2022.01.31"]
[EventType "team-tourn"]
[EventCountry "GER"]
[SourceTitle "playchess.com"]
[Source "ChessBase"]
[SourceQuality "1"]
[WhiteTeam "SK Johanneum Eppendorf I"]
[BlackTeam "TSG Taucha I"]
[TimeControl "2700+15"]

1. d4 Nf6 2. c4 e6 3. g3 c5 4. d5 exd5 5. cxd5 b5 6. e4 Nxe4 7. Bg2 Nf6 8. a4 d6 9. axb5 a6 10. Ne2 Bb7 11. bxa6 Nxa6 12. Qb3 Nb4 13. Rxa8 Qxa8 14. Nbc3 Nd3+ 15. Kf1 Nxc1 16. Nxc1 Be7 17. Qb5+ Nd7 18. Kg1 Qa6 19. Qxa6 Bxa6 20. h3 O-O 21. Kh2 Rb8 22. Re1 Kf8 23. b3 Nf6 24. g4 h6 25. Kg3 Bd8 26. f4 Ba5 27. Re3 g5 28. fxg5 hxg5 29. N3e2 Rb4 30. Rf3 Kg7 31. Rf5 Kg6 32. Bf3 Bc8 33. Rxf6+ Kxf6 34. h4 gxh4+ 35. Kxh4 Ke5 36. Nd3+ Kf6 37. Nxb4 Bxb4 38. Nf4 Bd7 39. Nd3 Bc3 40. g5+ Kg7 41. Bg4 Bb5 42. Bf5 Bd4 43. Kg4 Bxd3 44. Bxd3 f6 45. g6 Be5 46. Kf5 Bc3 47. Ke6 Be5 48. Bf5 Bf4 49. Kd7 Be5 50. Ke7 Bf4 51. Kd7 Be5 52. Ke7 Bf4 53. Kd7 1/2-1/2